fUST/lending_fUST_20260123
["ID","MTS","AMOUNT","RATE_DAILY","PERIOD"]
[403133878,1769182245327,-259092.47999251,0.0002,2]
[403133879,1769182245363,-69986.84424168,0.0002,2]
[403133880,1769182245374,-500.0,0.0002,2]
[403133890,1769182246504,-2529.29308191,0.0002,2]
[403133891,1769182246519,-4544.99980267,0.0002,2]
[403133892,1769182314422,2759.76973194,0.000119,2]
[403133893,1769182314515,10000.01,0.000119,2]
[403133894,1769182314605,10000.01,0.000119,2]
[403133895,1769182314696,10000.01,0.000119,2]
[403133896,1769182314782,10000.01,0.000119,2]
[403133897,1769182314867,10000.01,0.000119,2]
[403133898,1769182314964,10000.01,0.000119,2]
[403133899,1769182315056,10000.01,0.000119,2]
[403133900,1769182315148,10000.01,0.000119,2]
[403133901,1769182315239,10000.01,0.000119,2]
[403133902,1769182315279,192633.87273544,0.000119,2]
[403133903,1769182353614,1000.0,0.000104,2]
[403133908,1769182414280,150.0,8.193e-05,2]
[403133909,1769182414687,247.61,8.938e-05,2]
[403133910,1769182415598,371.42,9.683e-05,2]
[403133911,1769182416066,495.22,0.00010428,2]
[403133912,1769182416478,619.03,0.00011173,2]
[403133913,1769182416876,742.84,0.00011917,2]
[403133926,1769182492043,150.0,9.351e-05,2]
[403133927,1769182492463,180.77,0.00010201,2]
[403133928,1769182492866,271.15,0.00011051,2]
[403133929,1769182493298,361.53,0.00011901,2]
[403133950,1769182569817,150.0,8.51e-05,2]
[403133951,1769182570247,156.24,9.284e-05,2]
[403133952,1769182570647,234.36,0.00010058,2]
[403133953,1769182571050,312.48,0.00010831,2]
[403133954,1769182571449,390.6,0.00011605,2]
[403133966,1769182649439,150.0,8.326e-05,2]
[403133967,1769182649779,150.0,9.083e-05,2]
[403133968,1769182650222,186.88,9.84e-05,2]
[403133969,1769182650633,249.17,0.00010597,2]
[403133970,1769182651037,311.46,0.00011354,2]
[403133991,1769182702308,4119.25,0.00011917,2]
[403133992,1769182702388,880.75,0.00011917,2]
[403133993,1769182710804,5000.0,0.00011917,2]
[403133995,1769182719148,717.87233189,0.00011917,2]
[403133996,1769182723163,150.0,9.819e-05,2]
[403133997,1769182723577,150.0,0.00010712,2]
[403133998,1769182723969,150.0,0.00011604,2]
[403133999,1769182726918,2951.38766811,0.00011917,2]
[403134000,1769182726997,2048.61233189,0.00011917,2]
[403134004,1769182795590,150.0,9.813e-05,2]
[403134005,1769182796006,150.0,0.00010705,2]
[403134006,1769182796444,150.0,0.00011597,2]
[403134007,1769182803004,1157.33,5e-05,2]
[403134008,1769182804318,1157.33,5.1e-05,2]
[403134009,1769182804669,1157.33,5.2e-05,2]
[403134010,1769182804996,1157.33,5.3e-05,2]
[403134011,1769182805301,1157.33,5.4e-05,2]
[403134012,1769182805635,1157.33,5.5e-05,2]
[403134013,1769182805977,557.41766811,5.6e-05,2]
[403134014,1769182806065,599.91233189,5.6e-05,2]
[403134015,1769182806314,1157.33,5.7e-05,2]
[403134016,1769182806634,1157.33,5.8e-05,2]
[403134017,1769182806977,1157.33,5.9e-05,2]
[403134019,1769182807301,1157.33,6e-05,2]
[403134020,1769182807613,1157.33,6.1e-05,2]
[403134021,1769182807924,1157.33,6.2e-05,2]
[403134022,1769182808360,1157.33,6.3e-05,2]
[403134023,1769182808678,1157.33,6.4e-05,2]
[403134024,1769182809014,141.45766811,6.5e-05,2]
[403134025,1769182809107,1015.87233189,6.5e-05,2]
[403134026,1769182809358,1157.33,6.6e-05,2]
[403134027,1769182809814,1157.33,6.7e-05,2]
[403134028,1769182810143,1157.33,6.8e-05,2]
[403134029,1769182810500,1157.33,6.9e-05,2]
[403134030,1769182810869,1157.33,7e-05,2]
[403134031,1769182811165,1157.33,7.1e-05,2]
[403134032,1769182811596,1157.33,7.2e-05,2]
[403134033,1769182812114,882.82766811,7.3e-05,2]
[403134034,1769182812202,274.50233189,7.3e-05,2]
[403134035,1769182812313,1157.33,7.4e-05,2]
[403134036,1769182812523,1157.33,7.6e-05,2]
[403134037,1769182812861,1157.33,7.7e-05,2]
[403134038,1769182813234,1157.33,7.8e-05,2]
[403134039,1769182813573,1157.33,7.9e-05,2]
[403134040,1769182813830,365.98891021,8e-05,2]
[403134041,1769182813912,791.34108979,8e-05,2]
[403134042,1769182814212,1157.33,8.1e-05,2]
[403134043,1769182814526,1157.33,8.2e-05,2]
[403134044,1769182815444,1157.33,8.3e-05,2]
[403134045,1769182815785,1157.33,8.4e-05,2]
[403134046,1769182816340,1157.33,8.5e-05,2]
[403134047,1769182816945,1157.33,8.6e-05,2]
[403134048,1769182817373,1157.33,8.7e-05,2]
[403134049,1769182818611,1157.33,8.8e-05,2]
[403134050,1769182818931,1157.33,8.9e-05,2]
[403134052,1769182819314,1157.33,9e-05,2]
[403134053,1769182819696,741.37,9.1e-05,2]
[403134054,1769182819779,415.96,9.1e-05,2]
[403134055,1769182820120,1157.33,9.2e-05,2]
[403134056,1769182820438,1157.33,9.3e-05,2]
[403134057,1769182820918,1157.33,9.4e-05,2]
[403134058,1769182821301,1157.33,9.5e-05,2]
[403134059,1769182822447,1157.33,9.6e-05,2]
[403134060,1769182822828,1157.33,9.7e-05,2]
[403134061,1769182823520,1157.33,9.8e-05,2]
[403134062,1769182824018,1157.33,9.9e-05,2]
[403134063,1769182825198,325.41,5e-05,2]
[403134064,1769182825289,831.75,5e-05,2]
[403134066,1769182866095,150.0,9.034e-05,2]
[403134067,1769182866500,150.0,9.855e-05,2]
[403134068,1769182866911,150.0,0.00010676,2]
[403134069,1769182867310,150.02,0.00011498,2]
[403134089,1769182926463,2426.67091123,0.00011917,2]
[403134091,1769182936767,150.0,9.028e-05,2]
[403134092,1769182937197,150.0,9.849e-05,2]
[403134093,1769182937613,150.0,0.00010669,2]
[403134094,1769182938558,150.0,0.0001149,2]
[403134095,1769182941516,1953.49350687,0.00011917,2]
[403134097,1769183014246,150.0,9.018e-05,2]
[403134098,1769183014653,150.0,9.838e-05,2]
[403134099,1769183015058,150.0,0.00010658,2]
[403134100,1769183015491,150.0,0.00011477,2]
[403134222,1769183083867,150.0,8.827e-05,2]
[403134223,1769183084311,150.0,9.63e-05,2]
[403134224,1769183084710,150.0,0.00010432,2]
[403134225,1769183085095,150.0,0.00011235,2]
[403134234,1769183152001,150.0,8.909e-05,2]
[403134235,1769183152397,150.0,9.718e-05,2]
[403134236,1769183152815,150.0,0.00010528,2]
[403134240,1769183213891,365.98891021,0.00012,2]
[403134656,1769183438256,-365.31980059,0.00012028,2]
[403134657,1769183438266,-168.95114446,0.00012028,2]
[403134658,1769183438276,-510.77816102,0.00012028,2]
[403134659,1769183438287,-500.0,0.00012028,2]
[403134660,1769183438299,-500.0,0.00012028,2]
[403134661,1769183438308,-164.30443264,0.00012028,2]
[403134662,1769183438318,-500.0,0.00012028,2]
[403134663,1769183438328,-479.17632434,0.00012028,2]
[403134664,1769183438337,-500.0,0.00012028,2]
[403134665,1769183438347,-500.0,0.00012028,2]
[403134666,1769183438356,-500.0,0.00012028,2]
[403134667,1769183438365,-500.0,0.00012028,2]
[403134668,1769183438375,-500.0,0.00012028,2]
[403134669,1769183438386,-500.0,0.00012028,2]
[403134670,1769183438395,-500.0,0.00012028,2]
[403134671,1769183438404,-500.0,0.00012028,2]
[403134672,1769183438414,-500.0,0.00012028,2]
[403134673,1769183438424,-500.0,0.00012028,2]
[403134674,1769183438434,-378.90006214,0.00012028,2]
[403134675,1769183438444,-500.0,0.00012028,2]
[403134676,1769183438454,-625.20173472,0.00012028,2]
[403134677,1769183438464,-43759.6866935,0.00012029,2]
[403134678,1769183438473,-217.69368994,0.00012082,2]
[403134679,1769183438486,-300.0,0.00012115,2]
[403134680,1769183438496,-180.0,0.00012871,2]
[403134681,1769183438506,-300.0,0.00012871,2]
[403134682,1769183438516,-18033.41029502,0.00012872,2]
[403134683,1769183438526,-500.0,0.00012872,2]
[403134684,1769183438536,-300.0,0.00012874,2]
[403134685,1769183438546,-300.0,0.00012874,2]
[403134686,1769183438556,-300.0,0.00012874,2]
[403134687,1769183438566,-300.0,0.00012874,2]
[403134688,1769183438575,-300.0,0.00012874,2]
[403134689,1769183438585,-300.0,0.00012874,2]
[403134690,1769183438595,-300.0,0.00012874,2]
[403134691,1769183438605,-300.0,0.00012874,2]
[403134692,1769183438614,-300.0,0.00012874,2]
[403134693,1769183438624,-300.0,0.00012874,2]
[403134694,1769183438634,-300.0,0.00012874,2]
[403134695,1769183438643,-300.0,0.00012874,2]
[403134696,1769183438653,-300.0,0.00012874,2]
[403134697,1769183438662,-300.0,0.00012874,2]
[403134698,1769183438672,-300.0,0.00012874,2]
[403134699,1769183438681,-1920.97120021,0.000129,2]
[403134700,1769183438691,-222.0,0.000135,2]
[403134701,1769183438700,-500.0,0.00013698,2]
[403134702,1769183438709,-500.0,0.00013698,2]
[403134703,1769183438718,-257.76293767,0.00013698,2]
[403134704,1769183438729,-1000.0,0.00013699,2]
[403134705,1769183438739,-256.87855413,0.00014082,2]
[403134706,1769183438749,-420.0,0.00014117,2]
[403134707,1769183438758,-1957.5946098,0.00014718,2]
[403134708,1769183438768,-211.66041544,0.00014879,2]
[403134709,1769183438777,-209.81509,0.00015098,2]
[403134710,1769183438786,-301.03346659,0.000153,2]
[403134711,1769183438796,-600.0,0.00015354,2]
[403134712,1769183438805,-155.0,0.00015355,2]
[403134713,1769183438814,-643.18601566,0.000154,30]
[403134714,1769183438823,-382.5649016,0.000154,2]
[403134715,1769183438833,-587.0,0.00015483,2]
[403134716,1769183438842,-1920.97120017,0.00015713,2]
[403134717,1769183438852,-550.51411143,0.00015749,30]
[403134718,1769183438861,-500.0,0.00015749,30]
[403134719,1769183438871,-449.48588857,0.00015749,30]
[403134720,1769183438881,-179.48044253,0.00015749,30]
[403134721,1769183438891,-296.06341832,0.00016082,2]
[403134722,1769183438901,-150.0,0.00016164,2]
[403134723,1769183438911,-150.0,0.00016164,2]
[403134724,1769183438922,-150.0,0.00016164,2]
[403134725,1769183438931,-150.0,0.00016164,2]
[403134726,1769183438941,-150.0,0.00016164,2]
[403134727,1769183438951,-150.53438118,0.00016301,2]
[403134728,1769183438961,-150.0,0.00016301,2]
[403134729,1769183438971,-204.9205364,0.00016321,2]
[403134730,1769183438983,-172.71,0.00016438,2]
[403134731,1769183438994,-637.43237578,0.00016438,2]
[403134732,1769183439005,-720.0,0.00016889,2]
[403134733,1769183439015,-769.0,0.00016982,2]
[403134734,1769183439025,-629.0,0.00017039,2]
[403134735,1769183439035,-263.056,0.00017039,2]
[403134736,1769183439045,-1041.66666667,0.00017343,2]
[403134737,1769183439055,-335.24828251,0.00018082,2]
[403134738,1769183439066,-255.77186284,0.00018267,2]
[403134739,1769183439076,-209.81509,0.00018522,2]
[403134740,1769183439086,-864.0,0.00018578,2]
[403134741,1769183439096,-187.78006525,0.00018624,2]
[403134742,1769183439106,-194.72792766,0.00018624,2]
[403134743,1769183439116,-201.93286099,0.00018624,2]
[403134744,1769183439126,-209.40437684,0.00018624,2]
[403134745,1769183439136,-217.15233878,0.00018624,2]
[403134746,1769183439146,-192.85938275,0.00018624,2]
[403134747,1769183439156,-844.09001499,0.00018624,2]
[403134748,1769183439166,-286.37691676,0.00018624,2]
[403134749,1769183439176,-1920.97120017,0.00018651,2]
[403134750,1769183439186,-514.45989214,0.00019234,2]
[403134751,1769183439196,-169.62,0.000197,3]
[403134752,1769183439205,-173.14678739,0.000198,2]
[403134753,1769183439218,-2032.51,0.00019899,2]
[403134754,1769183439229,-400824.11713411,0.000199,2]
[403134773,1769183440471,-3e-08,0.000199,2]
[403134774,1769183440485,-17640.79463569,0.000199,2]
[403134798,1769183445783,-178.0,0.00017039,2]
[403134801,1769183445792,-27631.56198261,0.000199,2]
[403134803,1769183445805,-9377.06113134,0.000199,2]
[403134807,1769183445904,-86658.87818962,0.000199,2]
[403134808,1769183445914,-4696.22,0.000199,2]
[403134809,1769183445923,-2144.0317982,0.00019942,2]
[403134810,1769183445932,-284.37,0.0001999,3]
[403134811,1769183445942,-281977.84676466,0.0002,2]
[403134812,1769183445950,-1485.69,0.0002,2]
[403134813,1769183445960,-183.38,0.0002,2]
[403134814,1769183445969,-2000.0,0.0002,7]
[403134815,1769183445979,-178.0,0.00020039,2]
[403134816,1769183445990,-374.43314669,0.00020082,2]
[403134817,1769183445999,-1000.0,0.00020436,2]
[403134818,1769183446008,-1390.65405233,0.0002061,2]
[403134820,1769183446017,-256.72815407,0.000209,2]
[403134822,1769183446027,-9194.25228731,0.00021,5]
[403134823,1769183446037,-277.6007541,0.00021,2]
[403134824,1769183446046,-1563.72204859,0.00021,10]
[403134825,1769183446055,-50000.0,0.00021,2]
[403134826,1769183446064,-424.01,0.0002113,2]
[403134827,1769183446073,-178.762,0.0002113,2]
[403134828,1769183446082,-568.74,0.0002136,3]
[403134829,1769183446092,-1920.97120017,0.0002159,2]
[403134830,1769183446104,-209.81509,0.00021947,2]
[403134831,1769183446114,-487.120035,0.00021977,2]
[403134832,1769183446124,-160.96,0.00022,2]
[403134833,1769183446133,-336.19,0.00022,7]
[403134834,1769183446143,-413.61801088,0.00022082,2]
[403134835,1769183446152,-1000.0,0.0002248,10]
[403134836,1769183446162,-244.0,0.0002248,10]
[403134837,1769183446173,-1485.69,0.000225,14]
[403134838,1769183446189,-2032.51,0.00022639,2]
[403134839,1769183446199,-56164.56529096,0.000228,2]
[403134840,1769183446208,-1001.50500859,0.00023,2]
[403134841,1769183446219,-12966.38882424,0.00023,3]
[403134842,1769183446230,-729.0,0.0002306,3]
[403134843,1769183446241,-4696.22,0.000232,2]
[403134844,1769183446250,-151.0,0.00023265,2]
[403134845,1769183446260,-3878.0,0.0002328,3]
[403134846,1769183446270,-2000.0,0.00023333,7]
[403134847,1769183446280,-272.5,0.00023381,10]
[403134848,1769183446289,-26089.73822157,0.00023998,2]
[403134849,1769183446299,-30996.00863917,0.00024,7]
[403134850,1769183446309,-813.19,0.00024,14]
[403134851,1769183446319,-85168.97333836,0.00024,7]
[403134852,1769183446328,-169.62,0.00024016,3]
[403134853,1769183446338,-729.0,0.0002402,3]
[403134854,1769183446348,-452.80287507,0.00024082,2]
[403134855,1769183446358,-3878.0,0.00024131,3]
[403134856,1769183446367,-3878.0,0.0002414,3]
[403134857,1769183446377,-5727.75583564,0.00024142,2]
[403134858,1769183446387,-38000.0,0.00024142,7]
[403134859,1769183446396,-11872.17706357,0.00024142,7]
[403134860,1769183446406,-3878.0,0.0002418,3]
[403134861,1769183446416,-336.19,0.000242,7]
[403134862,1769183446426,-168.0,0.00024281,3]
[403134863,1769183446435,-38000.0,0.00024316,7]
[403134864,1769183446444,-38000.0,0.00024325,7]
[403134865,1769183446454,-38000.0,0.00024334,7]
[403134866,1769183446463,-38000.0,0.00024343,7]
[403134867,1769183446473,-729.0,0.00024425,3]
[403134868,1769183446482,-3878.0,0.00024425,3]
[403134869,1769183446495,-169.62,0.000246,3]
[403134870,1769183446504,-151.0,0.00024631,2]
[403134871,1769183446514,-116169.52687477,0.0002465,2]
[403134872,1769183446523,-514.55643597,0.0002465,2]
[403134873,1769183446532,-500.0,0.00024658,2]
[403134874,1769183446542,-423.0,0.00024674,3]
[403134875,1769183446551,-1485.69,0.000247,14]
[403134876,1769183446560,-516.737025,0.000247,30]
[403134877,1769183446583,-1000.0,0.00024728,10]
[403134878,1769183446604,-492.0,0.00024728,10]
[403134879,1769183446613,-500.0,0.00024795,2]
[403134880,1769183446625,-155.021108,0.000248,30]
[403134881,1769183446635,-4696.22,0.000249,2]
[403134882,1769183446645,-209.05,0.000249,2]
[403134883,1769183446655,-250.508705,0.000249,7]
[403134884,1769183446668,-151.0,0.000249,7]
[403134885,1769183446680,-151.0,0.000249,7]
[403134886,1769183446690,-151.0,0.000249,7]
[403134887,1769183446702,-152.025561,0.000249,7]
[403134888,1769183446711,-151.0,0.000249,7]
[403134889,1769183446722,-151.0,0.000249,7]
[403134890,1769183446732,-151.0,0.000249,7]
[403134891,1769183446743,-151.0,0.000249,7]
[403134892,1769183446752,-151.0,0.000249,7]
[403134893,1769183446761,-151.0,0.000249,7]
[403134894,1769183446772,-151.0,0.000249,7]
[403134895,1769183446782,-301.105307,0.000249,7]
[403134896,1769183446791,-189.598064,0.000249,7]
[403134897,1769183446800,-189.598064,0.000249,7]
[403134898,1769183446809,-189.598064,0.000249,7]
[403134899,1769183446818,-189.598064,0.000249,7]
[403134900,1769183446827,-151.0,0.000249,7]
[403134901,1769183446836,-151.0,0.000249,7]
[403134902,1769183446845,-151.0,0.000249,7]
[403134903,1769183446854,-151.0,0.000249,7]
[403134904,1769183446863,-151.0,0.000249,7]
[403134905,1769183446872,-209.272185,0.000249,7]
[403134906,1769183446882,-151.0,0.000249,7]
[403134907,1769183446892,-151.0,0.000249,7]
[403134908,1769183446901,-151.0,0.000249,7]
[403134909,1769183446910,-151.0,0.000249,7]
[403134910,1769183446919,-151.0,0.000249,7]
[403134911,1769183446928,-151.0,0.000249,7]
[403134912,1769183446938,-260.203914,0.000249,7]
[403134913,1769183446948,-151.0,0.000249,7]
[403134914,1769183446957,-544038.806173,0.000249,2]
[403134915,1769183446966,-151.0,0.000249,7]
[403134916,1769183446976,-151.0,0.000249,7]
[403134917,1769183446987,-151.551054,0.000249,7]
[403134918,1769183446996,-151.0,0.000249,7]
[403134919,1769183447006,-151.0,0.000249,7]
[403134920,1769183447015,-151.0,0.000249,7]
[403134921,1769183447024,-151.0,0.000249,7]
[403134922,1769183447034,-151.0,0.000249,7]
[403134923,1769183447044,-151.0,0.000249,7]
[403134924,1769183447053,-151.0,0.000249,7]
[403134925,1769183447062,-476.637713,0.000249,7]
[403134926,1769183447071,-476.637713,0.000249,7]
[403134927,1769183447080,-476.637713,0.000249,7]
[403134928,1769183447090,-476.637713,0.000249,7]
[403134929,1769183447100,-151.0,0.000249,7]
[403134930,1769183447109,-151.0,0.000249,7]
[403134931,1769183447118,-151.0,0.000249,7]
[403134932,1769183447128,-263.824771,0.000249,7]
[403134933,1769183447137,-500.0,0.00024932,2]
[403134934,1769183447147,-41574.2419693,0.00025,15]
[403134935,1769183447157,-1086.73946076,0.00025,2]
[403134936,1769183447167,-4000.81822502,0.00025,2]
[403134937,1769183447175,-2677.73490511,0.00025,2]
[403134938,1769183447185,-10364.0,0.00025,2]
[403134939,1769183447194,-500.0,0.00025,2]
[403134940,1769183447203,-150.0,0.00025,2]
[403134941,1769183447213,-26785.48190837,0.00025,8]
[403134942,1769183447226,-760.77110895,0.00025,2]
[403134943,1769183447237,-160.0,0.00025,30]
[403134944,1769183447247,-862.32113318,0.00025,30]
[403134945,1769183447256,-6000.64238156,0.00025,2]
[403134946,1769183447266,-500.0,0.00025069,2]
[403134947,1769183447276,-800.0,0.00025124,2]
[403134948,1769183447285,-800.0,0.00025156,2]
[403134949,1769183447296,-800.0,0.00025156,2]
[403134950,1769183447305,-800.0,0.00025165,2]
[403134951,1769183447315,-800.0,0.00025165,2]
[403134952,1769183447324,-800.0,0.00025172,2]
[403134953,1769183447334,-800.0,0.00025174,2]
[403134954,1769183447344,-500.0,0.00025206,2]
[403134955,1769183447354,-800.0,0.00025225,2]
[403134956,1769183447364,-800.0,0.00025236,2]
[403134957,1769183447374,-800.0,0.00025241,2]
[403134958,1769183447383,-800.0,0.00025243,2]
[403134959,1769183447393,-800.0,0.00025311,2]
[403134960,1769183447403,-800.0,0.00025319,2]
[403134961,1769183447413,-800.0,0.00025341,2]
[403134962,1769183447423,-500.0,0.00025343,2]
[403134963,1769183447432,-800.0,0.00025349,2]
[403134964,1769183447441,-800.0,0.0002535,2]
[403134965,1769183447450,-209.81509,0.00025372,2]
[403134966,1769183447460,-2032.51,0.00025379,2]
[403134967,1769183447469,-336.19,0.000254,7]
[403134968,1769183447478,-500.0,0.0002548,2]
[403134969,1769183447489,-37950.21371461,0.0002548,7]
[403134970,1769183447498,-151.0,0.0002548,7]
[403134971,1769183447507,-151.0,0.0002548,7]
[403134972,1769183447516,-151.0,0.0002548,7]
[403134973,1769183447526,-3878.0,0.00025485,3]
[403134974,1769183447535,-500.0,0.00025617,2]
[403134975,1769183447543,-729.0,0.00025744,3]
[403134976,1769183447553,-500.0,0.00025754,2]
[403134977,1769183447562,-500.0,0.00025891,2]
[403134978,1769183447571,-7179.54989524,0.00025906,2]
[403134979,1769183447580,-151.0,0.00025996,2]
[403134980,1769183447590,-20733.84848272,0.00026,10]
[403134981,1769183447599,-530.41268423,0.00026,2]
[403134982,1769183447608,-81000.00000191,0.00026,30]
[403134983,1769183447617,-19900.0,0.00026,2]
[403134984,1769183447627,-151.00827149,0.00026,120]
[403134985,1769183447636,-151.0,0.00026027,7]
[403134986,1769183447645,-151.0,0.00026027,7]
[403134987,1769183447654,-397.7555926,0.00026028,2]
[403134988,1769183447664,-3878.0,0.00026064,3]
[403134989,1769183447674,-491.98773926,0.00026082,2]
[403134990,1769183447683,-190.77,0.00026113,2]
[403134991,1769183447692,-729.0,0.00026117,3]
[403134992,1769183447701,-3878.0,0.00026117,3]
[403134993,1769183447711,-194.85144519,0.0002616,2]
[403134994,1769183447719,-471.14489149,0.0002616,2]
[403134995,1769183447729,-1485.69,0.000262,14]
[403134996,1769183447742,-3878.0,0.00026348,3]
[403134997,1769183447751,-3878.0,0.0002636,3]
[403134998,1769183447760,-729.0,0.0002636,3]
[403134999,1769183447769,-729.0,0.00026384,3]
[403135000,1769183447779,-3878.0,0.00026384,3]
[403135001,1769183447788,-160.96,0.000264,2]
[403135002,1769183447798,-4696.22,0.000264,2]
[403135003,1769183447807,-3878.0,0.00026437,3]
[403135004,1769183447817,-729.0,0.00026472,3]
[403135005,1769183447826,-2000.0,0.00026667,7]
[403135006,1769183447836,-729.0,0.00026704,3]
[403135007,1769183447846,-3878.0,0.00026704,3]
[403135008,1769183447855,-3878.0,0.00026757,3]
[403135009,1769183447865,-336.19,0.000269,7]
[403135010,1769183447875,-779.0,0.000269,2]
[403135011,1769183447884,-23610.80488855,0.00027,2]
[403135012,1769183447894,-502.26829,0.00027,120]
[403135013,1769183447903,-1021.61362499,0.00027,2]
[403135014,1769183447912,-200.0,0.00027,120]
[403135015,1769183447922,-203.8351,0.00027,120]
[403135016,1769183447931,-7179.54989524,0.00027011,2]
[403135017,1769183447940,-160.0,0.00027077,3]
[403135018,1769183447949,-1000.0,0.00027201,30]
[403135019,1769183447958,-791.0,0.00027201,30]
[403135020,1769183447967,-151.0,0.00027362,5]
[403135021,1769183447976,-300.0,0.00027397,2]
[403135022,1769183447985,-300.0,0.00027397,2]
[403135023,1769183447997,-300.0,0.00027397,2]
[403135024,1769183448008,-300.0,0.00027397,2]
[403135025,1769183448017,-797.0,0.00027397,15]
[403135026,1769183448027,-150.0,0.00027397,5]
[403135027,1769183448037,-150.0,0.00027397,5]
[403135028,1769183448047,-797.0,0.00027671,15]
[403135029,1769183448057,-169.62,0.000277,3]
[403135030,1769183448066,-502.26829,0.000278,120]
[403135031,1769183448076,-200.0,0.000278,120]
[403135032,1769183448087,-203.8351,0.000278,120]
[403135033,1769183448097,-797.0,0.00027945,15]
[403135034,1769183448106,-250.0,0.00027945,5]
[403135035,1769183448116,-250.0,0.00027945,5]
[403135036,1769183448125,-1994.89075382,0.00028,30]
[403135037,1769183448134,-1021.0,0.00028,2]
[403135038,1769183448143,-531.17260345,0.00028082,2]
[403135039,1769183448153,-190.77,0.00028087,2]
[403135040,1769183448162,-1485.69,0.000281,14]
[403135041,1769183448171,-752.45,0.000281,6]
[403135042,1769183448180,-7179.54989524,0.00028117,2]
[403135043,1769183448190,-2032.51,0.00028118,2]
[403135044,1769183448199,-797.0,0.00028219,15]
[403135045,1769183448208,-797.0,0.00028493,15]
[403135046,1769183448223,-350.0,0.00028493,5]
[403135047,1769183448232,-350.0,0.00028493,5]
[403135048,1769183448246,-160.96,0.000285,2]
[403135049,1769183448255,-502.26829,0.000286,120]
[403135050,1769183448265,-336.19,0.000286,7]
[403135051,1769183448274,-232.01514,0.000286,120]
[403135052,1769183448284,-203.8351,0.000286,120]
[403135053,1769183448294,-734.57234519,0.0002867,2]
[403135054,1769183448304,-2935.35109136,0.0002867,2]
[403135055,1769183448313,-151.0,0.00028727,7]
[403135056,1769183448324,-797.0,0.00028767,15]
[403135057,1769183448333,-209.81509,0.00028796,60]
[403135058,1769183448342,-200.0,0.00029,120]
[403135059,1769183448352,-1021.0,0.00029,2]
[403135060,1769183448361,-500.0,0.00029021,11]
[403135061,1769183448371,-500.0,0.00029021,11]
[403135062,1769183448380,-797.0,0.00029041,15]
[403135063,1769183448390,-450.0,0.00029041,5]
[403135064,1769183448399,-450.0,0.00029041,5]
[403135065,1769183448409,-1333.2471,0.0002922,30]
[403135066,1769183448418,-7179.54989524,0.00029222,2]
[403135067,1769183448428,-797.0,0.00029315,15]
[403135068,1769183448437,-502.26829,0.000294,120]
[403135069,1769183448447,-203.8351,0.000294,120]
[403135070,1769183448456,-797.0,0.00029589,15]
[403135071,1769183448466,-550.0,0.00029589,5]
[403135072,1769183448475,-550.0,0.00029589,5]
[403135073,1769183448485,-797.0,0.00029863,15]
[403135074,1769183448496,-10015.27385597,0.0002987,7]
[403135075,1769183448506,-10000.0,0.0002987,2]
[403135076,1769183448515,-151.0,0.000299,11]
[403135077,1769183448525,-151.0,0.000299,13]